[Event "Championnat d'Europe de Blitz"]
[Date "2024.12.09"]
[White "Pultinevicius, Paulius"]
[Black "Papasimakopoulos, Alexandros"]
[WhiteElo "2579"]
[BlackElo "2379"]
[Round "4.21"]
[Result "1-0"]
[TimeControl "180+2"]

1. Nf3 {[%clk 00:03:03]} Nf6 {[%emt 00:00:03] [%clk 00:03:03]} 2. c4 {[%clk
00:03:03]} e6 {[%emt 00:00:01] [%clk 00:03:04]} 3. e3 {[%emt 00:00:01] [%clk
00:03:03]} d5 {[%clk 00:03:05]} 4. Nc3 {[%emt 00:00:02] [%clk 00:03:03]} Be7
{[%clk 00:03:06]} 5. b3 {[%emt 00:00:04] [%clk 00:03:02]} b6 {[%emt 00:00:01]
[%clk 00:03:08]} 6. Bb2 {[%emt 00:00:01] [%clk 00:03:02]} Bb7 {[%clk 00:03:09]}
7. cxd5 {[%emt 00:00:02] [%clk 00:03:02]} exd5 {[%emt 00:00:01] [%clk 00:03:10]}
8. Rc1 {[%emt 00:00:02] [%clk 00:03:02]} O-O {[%emt 00:00:05] [%clk 00:03:07]}
9. Ne2 {[%emt 00:00:08] [%clk 00:02:55]} c5 {[%emt 00:00:04] [%clk 00:03:06]}
10. Ng3 {[%emt 00:00:08] [%clk 00:02:48]} d4 {[%emt 00:00:15] [%clk 00:02:54]}
11. Nf5 {[%emt 00:00:09] [%clk 00:02:41]} Re8 {[%emt 00:00:08] [%clk 00:02:48]}
12. Bb5 {[%emt 00:00:07] [%clk 00:02:35]} Bc6 {[%emt 00:00:10] [%clk 00:02:40]}
13. N3xd4 {[%emt 00:00:08] [%clk 00:02:29]} Bxb5 {[%emt 00:00:10] [%clk
00:02:32]} 14. Nxb5 {[%emt 00:00:02] [%clk 00:02:30]} Nc6 {[%emt 00:00:11] [%clk
00:02:23]} 15. Qf3 {[%emt 00:00:02] [%clk 00:02:30]} Nb4 {[%emt 00:00:06] [%clk
00:02:19]} 16. O-O {[%emt 00:00:30] [%clk 00:02:02]} Nd3 {[%emt 00:00:54] [%clk
00:01:26]} 17. Nxe7+ {[%emt 00:00:03] [%clk 00:02:01]} Qxe7 {[%emt 00:00:01]
[%clk 00:01:27]} 18. Bxf6 {[%emt 00:00:02] [%clk 00:02:02]} gxf6 {[%emt
00:00:06] [%clk 00:01:23]} 19. Nc3 {[%emt 00:00:12] [%clk 00:01:52]} Qe5 {[%emt
00:00:17] [%clk 00:01:08]} 20. Nd5 {[%emt 00:00:02] [%clk 00:01:52]} f5 {[%emt
00:00:01] [%clk 00:01:09]} 21. Rc3 {[%emt 00:00:08] [%clk 00:01:46]} Nb4 {[%emt
00:00:07] [%clk 00:01:05]} 22. Nxb4 {[%emt 00:00:06] [%clk 00:01:41]} cxb4
{[%emt 00:00:01] [%clk 00:01:06]} 23. d4 {[%emt 00:00:01] [%clk 00:01:42]} Qe4
{[%emt 00:00:09] [%clk 00:00:59]} 24. Rc4 {[%emt 00:00:01] [%clk 00:01:42]} a5
{[%emt 00:00:05] [%clk 00:00:57]} 25. Qg3+ {[%emt 00:00:01] [%clk 00:01:42]} Qg4
{[%emt 00:00:03] [%clk 00:00:57]} 26. Rfc1 {[%emt 00:00:08] [%clk 00:01:35]}
Qxg3 {[%emt 00:00:25] [%clk 00:00:35]} 27. hxg3 {[%emt 00:00:01] [%clk
00:01:36]} Kg7 {[%emt 00:00:01] [%clk 00:00:36]} 28. Rc6 {[%emt 00:00:03] [%clk
00:01:35]} Re6 {[%emt 00:00:21] [%clk 00:00:17]} 29. Rxe6 {[%clk 00:01:36]} fxe6
{[%emt 00:00:01] [%clk 00:00:18]} 30. Rc6 {[%emt 00:00:01] [%clk 00:01:37]} Kf7
{[%emt 00:00:03] [%clk 00:00:17]} 31. Rxb6 {[%emt 00:00:02] [%clk 00:01:38]} Rc8
{[%clk 00:00:18]} 32. Rb5 {[%emt 00:00:02] [%clk 00:01:37]} Rc1+ {[%emt
00:00:01] [%clk 00:00:19]} 33. Kh2 {[%clk 00:01:39]} Rc2 {[%clk 00:00:20]} 34.
Rxa5 {[%emt 00:00:01] [%clk 00:01:40]} Rxf2 {[%clk 00:00:21]} 35. Ra4 {[%emt
00:00:10] [%clk 00:01:32]} Kf6 {[%emt 00:00:03] [%clk 00:00:20]} 36. g4 {[%emt
00:00:05] [%clk 00:01:29]} fxg4 {[%emt 00:00:07] [%clk 00:00:15]} 37. Kg3 {[%emt
00:00:01] [%clk 00:01:30]} Re2 {[%clk 00:00:16]} 38. Kxg4 {[%emt 00:00:04] [%clk
00:01:28]} Rxg2+ {[%clk 00:00:17]} 39. Kf3 {[%emt 00:00:02] [%clk 00:01:27]} Rc2
{[%emt 00:00:02] [%clk 00:00:17]} 40. e4 {[%emt 00:00:04] [%clk 00:01:26]} h5
{[%emt 00:00:01] [%clk 00:00:17]} 41. Ra6 {[%emt 00:00:05] [%clk 00:01:23]} Kf7
{[%emt 00:00:06] [%clk 00:00:13]} 42. Kf4 {[%emt 00:00:05] [%clk 00:01:21]} Rg2
{[%emt 00:00:03] [%clk 00:00:11]} 43. Ra8 {[%emt 00:00:14] [%clk 00:01:10]} Kg7
{[%emt 00:00:08] [%clk 00:00:05]} 44. Ra5 {[%emt 00:00:23] [%clk 00:00:49]} Kg6
{[%emt 00:00:02] [%clk 00:00:05]} 45. Re5 {[%clk 00:00:50]} h4 {[%emt 00:00:03]
[%clk 00:00:05]} 46. Rxe6+ {[%clk 00:00:51]} Kg7 {[%clk 00:00:06]} 47. Rc6
{[%emt 00:00:22] [%clk 00:00:32]} h3 {[%emt 00:00:01] [%clk 00:00:07]} 48. Rc1
{[%clk 00:00:33]} h2 {[%clk 00:00:09]} 49. Rh1 {[%emt 00:00:02] [%clk 00:00:34]}
Rxa2 {[%clk 00:00:10]} 50. d5 {[%emt 00:00:03] [%clk 00:00:33]} Kf7 {[%emt
00:00:07] [%clk 00:00:04]} 51. Ke5 {[%clk 00:00:34]} Ke7 {[%emt 00:00:01] [%clk
00:00:04]} 52. Kd4 {[%clk 00:00:36]} Rc2 {[%emt 00:00:01] [%clk 00:00:05]} 53.
e5 {[%emt 00:00:02] [%clk 00:00:36]} Kd7 {[%clk 00:00:06]} 54. Ke3 {[%emt
00:00:06] [%clk 00:00:32]} Ke7 {[%emt 00:00:03] [%clk 00:00:06]} 55. Kf3 {[%emt
00:00:03] [%clk 00:00:31]} Rd2 {[%emt 00:00:01] [%clk 00:00:06]} 56. Ke4 {[%emt
00:00:04] [%clk 00:00:29]} Rc2 {[%clk 00:00:07]} 57. d6+ {[%emt 00:00:15] [%clk
00:00:17]} Ke6 {[%clk 00:00:08]} 58. Kd4 {[%clk 00:00:18]} Rd2+ {[%emt 00:00:01]
[%clk 00:00:09]} 59. Kc5 {[%emt 00:00:02] [%clk 00:00:18]} Kxe5 {[%emt 00:00:06]
[%clk 00:00:05]} 60. d7 {[%emt 00:00:04] [%clk 00:00:17]} Rxd7 {[%emt 00:00:02]
[%clk 00:00:05]} 61. Rxh2 {[%clk 00:00:18]} Rd3 {[%emt 00:00:04] [%clk
00:00:03]} 62. Re2 {[%emt 00:00:02] [%clk 00:00:18]} Kf5 {[%emt 00:00:02] [%clk
00:00:03]} 63. Kxb4 {[%emt 00:00:01] [%clk 00:00:19]} Rd8 {[%emt 00:00:01] [%clk
00:00:04]} 64. Re3 {[%emt 00:00:10] [%clk 00:00:11]} Kf4 {[%emt 00:00:02] [%clk
00:00:04]} 65. Re7 {[%clk 00:00:12]} Rb8+ {[%emt 00:00:02] [%clk 00:00:05]} 66.
Kc3 {[%emt 00:00:01] [%clk 00:00:12]} Rc8+ {[%clk 00:00:07]} 67. Kb2 {[%emt
00:00:01] [%clk 00:00:13]} Rb8 {[%clk 00:00:08]} 68. Re1 {[%emt 00:00:01] [%clk
00:00:14]} Kf5 {[%emt 00:00:02] [%clk 00:00:09]} 69. Re2 {[%emt 00:00:06] [%clk
00:00:09]} Kf4 {[%emt 00:00:01] [%clk 00:00:10]} 70. Re7 {[%emt 00:00:02] [%clk
00:00:09]} Kf5 {[%emt 00:00:01] [%clk 00:00:11]} 71. Kc2 {[%emt 00:00:06] [%clk
00:00:05]} Rc8+ {[%clk 00:00:13]} 72. Kd2 {[%clk 00:00:06]} Rd8+ {[%emt
00:00:03] [%clk 00:00:12]} 73. Ke2 {[%emt 00:00:05] [%clk 00:00:03]} Rb8 {[%emt
00:00:03] [%clk 00:00:11]} 74. Re3 {[%clk 00:00:04]} Kf4 {[%emt 00:00:01] [%clk
00:00:13]} 75. Kf2 {[%clk 00:00:05]} Rh8 {[%emt 00:00:05] [%clk 00:00:10]} 76.
Ke2 {[%emt 00:00:01] [%clk 00:00:05]} Rb8 {[%clk 00:00:11]} 77. Kd2 {[%emt
00:00:01] [%clk 00:00:07]} Rd8+ {[%clk 00:00:12]} 78. Rd3 {[%emt 00:00:01] [%clk
00:00:08]} Rb8 {[%clk 00:00:12]} 79. Kc3 {[%emt 00:00:03] [%clk 00:00:08]} Ke4
{[%clk 00:00:13]} 80. Rd4+ {[%emt 00:00:03] [%clk 00:00:07]} Ke5 {[%clk
00:00:15]} 81. b4 {[%emt 00:00:01] [%clk 00:00:09]} Rc8+ {[%emt 00:00:04] [%clk
00:00:13]} 82. Kd3 {[%clk 00:00:10]} Rb8 {[%emt 00:00:03] [%clk 00:00:12]} 83.
Kc3 {[%emt 00:00:02] [%clk 00:00:09]} Rc8+ {[%clk 00:00:14]} 84. Rc4 {[%clk
00:00:11]} Rb8 {[%clk 00:00:15]} 85. Rc6 {[%emt 00:00:02] [%clk 00:00:11]} Kd5
{[%emt 00:00:03] [%clk 00:00:14]} 86. Rh6 {[%emt 00:00:01] [%clk 00:00:12]} Rc8+
{[%emt 00:00:07] [%clk 00:00:09]} 87. Kb3 {[%clk 00:00:13]} Rb8 {[%emt 00:00:01]
[%clk 00:00:10]} 88. Ka4 {[%emt 00:00:01] [%clk 00:00:14]} Ra8+ {[%emt 00:00:01]
[%clk 00:00:11]} 89. Kb5 {[%clk 00:00:15]} Rb8+ {[%emt 00:00:05] [%clk
00:00:08]} 90. Rb6 {[%emt 00:00:01] [%clk 00:00:16]} Ra8 {[%clk 00:00:10]} 91.
Rb7 {[%emt 00:00:02] [%clk 00:00:16]} Kd6 {[%emt 00:00:06] [%clk 00:00:06]} 92.
Kb6 {[%clk 00:00:17]} Rc8 {[%emt 00:00:03] [%clk 00:00:04]} 93. b5 {[%emt
00:00:01] [%clk 00:00:18]} Rc1 {[%emt 00:00:02] [%clk 00:00:05]} 94. Rb8 {[%emt
00:00:03] [%clk 00:00:17]} Kd7 {[%clk 00:00:06]} 95. Kb7 {[%emt 00:00:02] [%clk
00:00:18]} Rc7+ {[%emt 00:00:01] [%clk 00:00:07]} 96. Ka6 {[%clk 00:00:20]} Rc1
{[%emt 00:00:01] [%clk 00:00:08]} 97. b6 {[%clk 00:00:20]} Ra1+ {[%emt 00:00:01]
[%clk 00:00:09]} 98. Kb7 {[%clk 00:00:22]} Rh1 {[%emt 00:00:01] [%clk 00:00:09]}
99. Rc8 {[%emt 00:00:02] [%clk 00:00:22]} Rb1 {[%emt 00:00:01] [%clk 00:00:10]}
100. Rc3 {[%clk 00:00:23]} Rb4 {[%emt 00:00:02] [%clk 00:00:10]} 101. Rd3 {[%emt
00:00:01] [%clk 00:00:24]} Ke7 {[%clk 00:00:12]} 102. Kc7 {[%emt 00:00:01] [%clk
00:00:25]} Ke6 {[%clk 00:00:13]} 103. b7 {[%clk 00:00:26]} Ke7 {[%clk 00:00:14]}
1-0

[Site "Europe Echecs"]

[Event "Championnat d'Europe de Blitz"]
[Date "2024.12.09"]
[White "Diermair, Andreas"]
[Black "Sargissian, Gabriel"]
[WhiteElo "2433"]
[BlackElo "2628"]
[Round "4.22"]
[Result "1/2-1/2"]
[TimeControl "180+2"]

1. Nf3 {[%clk 00:03:03]} d5 {[%emt 00:00:03] [%clk 00:03:02]} 2. g3 {[%emt
00:00:02] [%clk 00:03:04]} Nf6 {[%emt 00:00:19] [%clk 00:02:45]} 3. Bg2 {[%emt
00:00:01] [%clk 00:03:04]} c6 {[%emt 00:00:01] [%clk 00:02:47]} 4. O-O {[%emt
00:00:05] [%clk 00:03:02]} Bg4 {[%emt 00:00:01] [%clk 00:02:47]} 5. c4 {[%emt
00:00:02] [%clk 00:03:01]} e6 {[%emt 00:00:03] [%clk 00:02:47]} 6. h3 {[%emt
00:00:05] [%clk 00:02:58]} Bh5 {[%emt 00:00:02] [%clk 00:02:47]} 7. d4 {[%emt
00:00:01] [%clk 00:02:58]} Be7 {[%emt 00:00:07] [%clk 00:02:43]} 8. Nc3 {[%emt
00:00:17] [%clk 00:02:43]} O-O {[%emt 00:00:10] [%clk 00:02:36]} 9. Ne5 {[%emt
00:00:07] [%clk 00:02:37]} Nbd7 {[%emt 00:00:43] [%clk 00:01:55]} 10. cxd5
{[%emt 00:00:02] [%clk 00:02:36]} Nxd5 {[%emt 00:00:31] [%clk 00:01:26]} 11.
Nxd5 {[%emt 00:01:07] [%clk 00:01:31]} cxd5 {[%emt 00:00:10] [%clk 00:01:18]}
12. Nd3 {[%emt 00:00:06] [%clk 00:01:27]} Bd6 {[%emt 00:00:26] [%clk 00:00:55]}
13. Nf4 {[%emt 00:00:05] [%clk 00:01:24]} Bxf4 {[%emt 00:00:02] [%clk 00:00:55]}
14. Bxf4 {[%emt 00:00:01] [%clk 00:01:25]} Rc8 {[%emt 00:00:02] [%clk 00:00:56]}
15. Qd2 {[%emt 00:00:03] [%clk 00:01:23]} Qb6 {[%emt 00:00:05] [%clk 00:00:54]}
16. Rac1 {[%emt 00:00:05] [%clk 00:01:20]} Nf6 {[%emt 00:00:06] [%clk 00:00:50]}
17. g4 {[%emt 00:00:13] [%clk 00:01:08]} Bg6 {[%emt 00:00:01] [%clk 00:00:50]}
18. f3 {[%emt 00:00:03] [%clk 00:01:08]} Qa6 {[%emt 00:00:10] [%clk 00:00:42]}
19. a3 {[%emt 00:00:03] [%clk 00:01:07]} Qb5 {[%emt 00:00:03] [%clk 00:00:42]}
20. Rxc8 {[%emt 00:00:28] [%clk 00:00:41]} Rxc8 {[%clk 00:00:42]} 21. Rc1 {[%emt
00:00:01] [%clk 00:00:41]} Rc4 {[%emt 00:00:13] [%clk 00:00:31]} 22. Bf1 {[%emt
00:00:07] [%clk 00:00:37]} h6 {[%emt 00:00:21] [%clk 00:00:13]} 23. e3 {[%emt
00:00:04] [%clk 00:00:34]} Rxc1 {[%emt 00:00:02] [%clk 00:00:13]} 24. Qxc1
{[%emt 00:00:01] [%clk 00:00:35]} Bd3 {[%emt 00:00:06] [%clk 00:00:09]} 25. Bxd3
{[%emt 00:00:03] [%clk 00:00:34]} Qxd3 {[%emt 00:00:01] [%clk 00:00:10]} 26.
Qc8+ {[%clk 00:00:35]} Kh7 {[%emt 00:00:02] [%clk 00:00:11]} 27. Qxb7 {[%emt
00:00:01] [%clk 00:00:35]} Qd1+ {[%emt 00:00:02] [%clk 00:00:12]} 28. Kf2 {[%emt
00:00:02] [%clk 00:00:35]} Qd2+ {[%clk 00:00:13]} 29. Kf1 {[%emt 00:00:01] [%clk
00:00:36]} Qd1+ {[%emt 00:00:02] [%clk 00:00:13]} 30. Kf2 {[%clk 00:00:37]} Qd2+
{[%emt 00:00:01] [%clk 00:00:14]} 31. Kf1 {[%emt 00:00:01] [%clk 00:00:39]} Qd1+
{[%clk 00:00:15]} 32. Kf2 {[%emt 00:00:02] [%clk 00:00:39]} Qd2+ {[%emt
00:00:05] [%clk 00:00:12]} 33. Kf1 {[%clk 00:00:40]} Qd1+ {[%clk 00:00:14]} 34.
Kf2 {[%emt 00:00:01] [%clk 00:00:42]} 1/2-1/2

[Site "Europe Echecs"]

[Event "Championnat d'Europe de Blitz"]
[Date "2024.12.09"]
[White "Zhukovskyi, Myhaylo"]
[Black "Kozul, Zdenko"]
[WhiteElo "2189"]
[BlackElo "2519"]
[Round "4.23"]
[Result "0-1"]
[TimeControl "180+2"]

1. Nf3 {[%emt 00:00:03] [%clk 00:03:03]} Nf6 {[%clk 00:03:03]} 2. g3 {[%emt
00:00:01] [%clk 00:03:04]} g6 {[%clk 00:03:04]} 3. Bg2 {[%clk 00:03:05]} Bg7
{[%clk 00:03:04]} 4. O-O {[%emt 00:00:02]} d5 5. d4 {[%clk 00:03:06]} O-O {[%clk
00:03:05]} 6. c4 {[%emt 00:00:06] [%clk 00:03:09]} c6 {[%clk 00:03:06]} 7. a4
{[%emt 00:00:02] [%clk 00:03:10]} a5 {[%clk 00:03:01]} 8. cxd5 {[%emt 00:00:07]
[%clk 00:03:11]} cxd5 {[%emt 00:00:05]} 9. Qb3 Nc6 {[%emt 00:00:10] [%clk
00:02:50]} 10. Bf4 {[%emt 00:00:02] [%clk 00:03:13]} Nb4 {[%emt 00:00:40] [%clk
00:02:12]} 11. Na3 {[%emt 00:00:02]} Bd7 {[%emt 00:00:01] [%clk 00:02:12]} 12.
Rfc1 {[%emt 00:00:03] [%clk 00:03:14]} Bc6 {[%emt 00:00:02] [%clk 00:02:11]} 13.
Ne5 {[%emt 00:00:08] [%clk 00:03:08]} Qb6 {[%emt 00:00:07] [%clk 00:02:05]} 14.
Nc2 {[%emt 00:00:20] [%clk 00:02:51]} e6 {[%emt 00:00:32] [%clk 00:01:35]} 15.
Bd2 {[%emt 00:00:03] [%clk 00:02:50]} Rfb8 {[%emt 00:00:38] [%clk 00:01:00]} 16.
Nxb4 {[%emt 00:00:20] [%clk 00:02:32]} axb4 {[%emt 00:00:01] [%clk 00:01:00]}
17. Qxb4 {[%emt 00:00:08] [%clk 00:02:26]} Qxb4 {[%emt 00:00:08] [%clk
00:00:54]} 18. Bxb4 {[%emt 00:00:02] [%clk 00:02:27]} Rxa4 {[%emt 00:00:11]
[%clk 00:00:45]} 19. Rxa4 {[%emt 00:00:07] [%clk 00:02:21]} Bxa4 {[%clk
00:00:46]} 20. Bd6 {[%emt 00:00:43] [%clk 00:01:40]} Ra8 {[%clk 00:00:47]} 21.
Ra1 {[%emt 00:00:02] [%clk 00:01:41]} Ra6 {[%emt 00:00:03] [%clk 00:00:45]} 22.
Ba3 {[%emt 00:00:04] [%clk 00:01:38]} Nd7 {[%emt 00:00:13] [%clk 00:00:35]} 23.
Nxd7 {[%emt 00:00:21] [%clk 00:01:19]} Bxd7 {[%emt 00:00:01] [%clk 00:00:36]}
24. Rd1 {[%emt 00:00:07] [%clk 00:01:14]} Bf8 {[%clk 00:00:30]} 25. Rd3 {[%emt
00:00:27] [%clk 00:00:57]} Bb5 {[%clk 00:00:25]} 26. Re3 {[%emt 00:00:31] [%clk
00:00:35]} Bxa3 {[%clk 00:00:21]} 27. bxa3 {[%emt 00:00:07] [%clk 00:00:36]} 0-1

[Site "Europe Echecs"]

[Event "Championnat d'Europe de Blitz"]
[Date "2024.12.09"]
[White "Beerdsen, Thomas"]
[Black "Ribeiro, Rodrigo"]
[WhiteElo "2502"]
[BlackElo "2143"]
[Round "4.24"]
[Result "1-0"]
[TimeControl "180+2"]

1. e4 {[%emt 00:00:04] [%clk 00:03:02]} c5 {[%clk 00:03:04]} 2. Nf3 {[%clk
00:03:03]} e6 {[%emt 00:00:01] [%clk 00:03:05]} 3. d4 {[%clk 00:03:04]} cxd4
{[%clk 00:03:07]} 4. Bg5 {[%emt 00:00:01] [%clk 00:03:04]} Qb6 {[%emt 00:00:26]
[%clk 00:02:44]} 5. Qxd4 {[%emt 00:00:01] [%clk 00:03:04]} Qxd4 {[%emt 00:00:01]
[%clk 00:02:45]} 6. Nxd4 {[%emt 00:00:02] [%clk 00:03:04]} a6 {[%emt 00:00:01]
[%clk 00:02:46]} 7. Nd2 {[%clk 00:03:05]} h6 {[%emt 00:00:12] [%clk 00:02:38]}
8. Be3 {[%emt 00:00:06] [%clk 00:03:00]} Nc6 {[%emt 00:00:06] [%clk 00:02:34]}
9. Nxc6 {[%emt 00:00:02] [%clk 00:03:00]} dxc6 {[%emt 00:00:03] [%clk 00:02:33]}
10. Nc4 {[%emt 00:00:02] [%clk 00:03:01]} b5 {[%emt 00:00:05] [%clk 00:02:30]}
11. Nb6 {[%emt 00:00:02] [%clk 00:03:00]} Rb8 {[%emt 00:00:01] [%clk 00:02:31]}
12. Nxc8 {[%emt 00:00:12] [%clk 00:02:50]} Rxc8 {[%emt 00:00:01] [%clk
00:02:32]} 13. a4 {[%emt 00:00:01] [%clk 00:02:51]} Nf6 {[%emt 00:00:04] [%clk
00:02:31]} 14. axb5 {[%emt 00:00:03] [%clk 00:02:50]} axb5 {[%emt 00:00:01]
[%clk 00:02:31]} 15. f3 {[%emt 00:00:14] [%clk 00:02:38]} Bd6 {[%emt 00:00:20]
[%clk 00:02:13]} 16. Ra6 {[%emt 00:00:12] [%clk 00:02:28]} Kd7 {[%emt 00:00:16]
[%clk 00:01:59]} 17. Bd3 {[%emt 00:00:36] [%clk 00:01:55]} Ra8 {[%clk 00:02:00]}
18. Rxa8 {[%emt 00:00:01] [%clk 00:01:56]} Rxa8 {[%emt 00:00:01] [%clk
00:02:01]} 19. Kd2 {[%emt 00:00:01] [%clk 00:01:56]} Ra2 {[%emt 00:00:05] [%clk
00:01:58]} 20. b3 {[%emt 00:00:05] [%clk 00:01:53]} Bb4+ {[%emt 00:00:01] [%clk
00:01:59]} 21. Ke2 {[%emt 00:00:03] [%clk 00:01:52]} Kc7 {[%emt 00:00:21] [%clk
00:01:40]} 22. Bd4 {[%emt 00:00:05] [%clk 00:01:49]} Ne8 {[%emt 00:00:21] [%clk
00:01:21]} 23. Ra1 {[%emt 00:00:16] [%clk 00:01:34]} Rxa1 {[%emt 00:00:02] [%clk
00:01:22]} 24. Bxa1 {[%emt 00:00:01] [%clk 00:01:35]} h5 {[%emt 00:00:04] [%clk
00:01:20]} 25. f4 {[%emt 00:00:04] [%clk 00:01:33]} Bd6 {[%emt 00:00:07] [%clk
00:01:15]} 26. Kf3 {[%emt 00:00:05] [%clk 00:01:30]} Kd7 {[%emt 00:00:06] [%clk
00:01:11]} 27. g4 {[%emt 00:00:07] [%clk 00:01:25]} hxg4+ {[%emt 00:00:07] [%clk
00:01:07]} 28. Kxg4 {[%emt 00:00:01] [%clk 00:01:25]} Ke7 {[%emt 00:00:02] [%clk
00:01:08]} 29. h4 {[%emt 00:00:02] [%clk 00:01:24]} Nf6+ {[%emt 00:00:31] [%clk
00:00:39]} 30. Kf3 {[%emt 00:00:03] [%clk 00:01:23]} Nh5 {[%emt 00:00:05] [%clk
00:00:36]} 31. e5 {[%emt 00:00:03] [%clk 00:01:21]} Bc5 {[%emt 00:00:05] [%clk
00:00:34]} 32. Be4 {[%emt 00:00:11] [%clk 00:01:12]} Kd7 {[%emt 00:00:06] [%clk
00:00:31]} 33. f5 {[%emt 00:00:02] [%clk 00:01:12]} exf5 {[%emt 00:00:08] [%clk
00:00:25]} 34. Bxf5+ {[%clk 00:01:12]} Ke7 {[%emt 00:00:01] [%clk 00:00:27]} 35.
Be4 {[%emt 00:00:47] [%clk 00:00:27]} Kd7 {[%emt 00:00:01] [%clk 00:00:27]} 36.
Kg4 {[%emt 00:00:15] [%clk 00:00:14]} g6 {[%clk 00:00:28]} 37. e6+ {[%emt
00:00:02] [%clk 00:00:14]} Kxe6 {[%emt 00:00:09] [%clk 00:00:21]} 38. Bxc6
{[%emt 00:00:01] [%clk 00:00:15]} b4 {[%clk 00:00:23]} 39. c3 {[%emt 00:00:02]
[%clk 00:00:15]} Nf6+ {[%emt 00:00:03] [%clk 00:00:21]} 40. Kf3 {[%emt 00:00:03]
[%clk 00:00:14]} bxc3 {[%emt 00:00:12] [%clk 00:00:11]} 41. Bxc3 {[%emt
00:00:02] [%clk 00:00:15]} Nd5 {[%clk 00:00:12]} 42. Bd2 {[%emt 00:00:02] [%clk
00:00:16]} Nb4 {[%emt 00:00:03] [%clk 00:00:11]} 43. Bb5 {[%emt 00:00:01] [%clk
00:00:16]} Kf5 {[%emt 00:00:07] [%clk 00:00:06]} 44. Bd7+ {[%emt 00:00:02] [%clk
00:00:16]} Kf6 {[%emt 00:00:04] [%clk 00:00:05]} 45. Bc3+ {[%emt 00:00:04] [%clk
00:00:14]} Ke7 {[%emt 00:00:01] [%clk 00:00:06]} 46. Bb5 {[%emt 00:00:01] [%clk
00:00:14]} Nd5 {[%emt 00:00:02] [%clk 00:00:06]} 47. Bd2 {[%emt 00:00:02] [%clk
00:00:14]} Bb4 {[%emt 00:00:02] [%clk 00:00:07]} 48. Bg5+ {[%emt 00:00:03] [%clk
00:00:13]} f6 {[%emt 00:00:05] [%clk 00:00:04]} 49. Bc1 {[%emt 00:00:02] [%clk
00:00:12]} Bc3 {[%emt 00:00:02] [%clk 00:00:04]} 50. Bc4 {[%emt 00:00:02] [%clk
00:00:13]} Nb4 {[%emt 00:00:02] [%clk 00:00:04]} 51. Be3 {[%emt 00:00:03] [%clk
00:00:11]} Kd6 {[%emt 00:00:03] [%clk 00:00:03]} 52. Bf4+ {[%emt 00:00:02] [%clk
00:00:11]} Be5 {[%emt 00:00:01] [%clk 00:00:04]} 53. Bd2 {[%clk 00:00:12]} Kc5
{[%emt 00:00:01] [%clk 00:00:06]} 54. Bf7 {[%emt 00:00:02] [%clk 00:00:11]} Nc2
{[%emt 00:00:03] [%clk 00:00:06]} 55. Bxg6 {[%emt 00:00:03] [%clk 00:00:10]}
Nd4+ {[%clk 00:00:07]} 56. Ke4 {[%clk 00:00:11]} Nxb3 {[%emt 00:00:01] [%clk
00:00:09]} 57. Be3+ {[%clk 00:00:11]} Kd6 {[%clk 00:00:10]} 58. h5 {[%emt
00:00:04] [%clk 00:00:10]} f5+ {[%emt 00:00:06] [%clk 00:00:06]} 59. Kxf5 {[%emt
00:00:01] [%clk 00:00:11]} Bh8 {[%emt 00:00:01] [%clk 00:00:07]} 60. Bf7 {[%emt
00:00:02] [%clk 00:00:11]} Nc5 {[%emt 00:00:02] [%clk 00:00:07]} 61. Kg6 {[%emt
00:00:02] [%clk 00:00:11]} Ne4 {[%emt 00:00:04] [%clk 00:00:05]} 62. Kh7 {[%emt
00:00:03] [%clk 00:00:10]} Bc3 {[%emt 00:00:02] [%clk 00:00:05]} 63. h6 {[%emt
00:00:04] [%clk 00:00:08]} Ke7 {[%emt 00:00:01] [%clk 00:00:06]} 64. Bb3 {[%emt
00:00:02] [%clk 00:00:08]} Kf8 {[%emt 00:00:03] [%clk 00:00:05]} 65. Kg6 {[%emt
00:00:03] [%clk 00:00:07]} Bh8 {[%emt 00:00:02] [%clk 00:00:05]} 66. Bc2 {[%emt
00:00:01] [%clk 00:00:08]} Nd6 {[%emt 00:00:01] [%clk 00:00:06]} 67. Bc5 {[%clk
00:00:10]} Ke7 {[%clk 00:00:07]} 68. Ba4 {[%emt 00:00:01] [%clk 00:00:10]} Bb2
{[%emt 00:00:02] [%clk 00:00:07]} 69. h7 {[%emt 00:00:01] [%clk 00:00:10]} Ke6
{[%emt 00:00:01] [%clk 00:00:08]} 70. Bb3+ {[%emt 00:00:01] [%clk 00:00:11]} Ke7
{[%emt 00:00:01] [%clk 00:00:09]} 71. Bb4 {[%emt 00:00:02] [%clk 00:00:11]} Bh8
{[%emt 00:00:01] [%clk 00:00:10]} 72. Bd2 {[%emt 00:00:05] [%clk 00:00:08]} Ne8
{[%emt 00:00:02] [%clk 00:00:10]} 73. Ba4 {[%emt 00:00:02] [%clk 00:00:08]} Nd6
{[%emt 00:00:03]} 74. Bg5+ {[%clk 00:00:09]} Ke6 {[%emt 00:00:02] [%clk
00:00:10]} 75. Bb3+ {[%emt 00:00:01] [%clk 00:00:10]} Ke5 {[%emt 00:00:01] [%clk
00:00:11]} 76. Bc1 {[%emt 00:00:05] [%clk 00:00:07]} Nf5 {[%emt 00:00:10] [%clk
00:00:03]} 77. Kf7 {[%emt 00:00:03] [%clk 00:00:05]} 1-0

[Site "Europe Echecs"]